Cogmind - Beta 11.1 @@@ ROGUE MODE // 2022.08.22 @ 22:02:28 Player: PlasticHeart Result: Destroyed by D-53 Grenadier with Mini Grenade Launcher Performance ------------- Evolutions (0) 0 Regions Visited (4) 800 Robots Destroyed (4) 20 Value Destroyed (35) 35 Prototype IDs (25) 500 Alien Tech Used (0) 0 Bonus (300) 300 TOTAL SCORE: 1655 Bonus ------- Aligned with FarCom 300 Cogmind --------- Core Integrity 0/250 Matter 290/300 Energy 84/100 System Corruption 0% Temperature Cool (0) Movement Rolling (125) Ox3 Location -9/Mines Parts ------- > --- POWER (1) -------- (None) > --- PROPULSION (2) --- Wheel > --- UTILITY (2) ------ High-capacity Storage Unit > --- WEAPON (2) ------- (None) > --- INVENTORY (20) --- VTOL Module VTOL Module VTOL Module Improved Flight Unit Improved Flight Unit Small Storage Unit Modified TNC Decoy Drone Bay EM Shotgun EM Shotgun Improved Assault Rifle Makeshift Hammer Peak State ------------ > --- POWER ------------ Ion Engine > --- PROPULSION ------- Wheel Wheel > --- UTILITY ---------- High-capacity Storage Unit > --- WEAPON ----------- Improved Assault Rifle Improved Assault Rifle > --- INVENTORY -------- Wheel Wheel Wheel VTOL Module VTOL Module VTOL Module Improved Flight Unit Improved Flight Unit Modified TNC Decoy Drone Bay EM Shotgun EM Shotgun Improved Assault Rifle [Rating: 14] Favorites ----------- Power Ion Engine Engine Ion Engine Propulsion Wheel Wheel Wheel Flight Unit Improved Flight Unit Utility High-capacity Storage Unit Storage High-capacity Storage Unit Weapon Improved Assault Rifle Energy Gun EM Shotgun Ballistic Gun Improved Assault Rifle Build | -11 -10 -10 -10 -9 ------- Run | Scr Mat Min Exi Min Slots Evolved . | . . . . . Power . | . . . . . Propulsion . | . . . . . Utility . | . . . . . Weapon . | . . . . . Parts Attached 16 | 6 6 1 . 3 Power 1 | 1 . . . . Engine 1 | 1 . . . . Core . | . . . . . Reactor . | . . . . . Propulsion 7 | 2 2 . . 3 Treads . | . . . . . Leg . | . . . . . Wheel 6 | 2 1 . . 3 Hover . | . . . . . Flight 1 | . 1 . . . Utility 2 | 1 . 1 . . Device . | . . . . . Storage 2 | 1 . 1 . . Processor . | . . . . . Hackware . | . . . . . Protection . | . . . . . Artifact . | . . . . . Weapon 6 | 2 4 . . . Energy Gun 2 | . 2 . . . Energy Cannon . | . . . . . Ballistic Gun 4 | 2 2 . . . Ballistic Cannon . | . . . . . Launcher . | . . . . . Special Weapon . | . . . . . Impact Weapon . | . . . . . Slashing Weapon . | . . . . . Piercing Weapon . | . . . . . Special Melee Weapon . | . . . . . Unidentified Prototypes 2 | . 2 . . . Parts Lost 7 | . . . . 7 Power 1 | . . . . 1 Propulsion 4 | . . . . 4 Utility . | . . . . . Weapon 2 | . . . . 2 Highest Loss Streak 7 | . . . . 7 To Critical Strikes . | . . . . . Average Slot Usage (%) 84 | . 84 85 85 77 Engine 13 | . 14 14 14 10 Wheel 27 | . 27 28 28 26 Storage 14 | . 14 14 14 14 Energy Gun 3 | . 20 . . . Ballistic Gun 24 | . 7 28 28 26 Naked Turns . | . . . . . Heaviest Build 51 | 13 16 51 51 51 Greatest Support 20 | 20 20 20 20 20 Greatest Overweight (x) 5 | 1 . 2 2 5 Average Overweight (x) 1 | . . . 2 2 Largest Inventory Capacity 20 | 8 8 20 20 20 Average Capacity 14 | 7 8 12 20 20 Most Carried 16 | 3 8 13 15 16 Average Carried 10 | 1 6 9 13 15 Final Capacity 20 | 8 8 20 20 20 Final Carried 15 | 1 8 13 15 13 Class Distribution -------------------- 100% | Mutant Dominant Class ---------------- Mutant | -10/Materials Mutant | -10/Mines Mutant | -10/Exiles Mutant | -9/Mines Resources | -11 -10 -10 -10 -9 ----------- Run | Scr Mat Min Exi Min Matter Collected 379 | 210 70 86 . 13 Remotely . | . . . . . Salvage Created 81 | . 39 29 . 13 Parts 10 | . 3 7 . . Haulers Intercepted . | . . . . . Recyclers Shooed . | . . . . . Parts Field Recycled . | . . . . . Retrieved Matter . | . . . . . Parts Self-Destructed . | . . . . . Prevented . | . . . . . Kills | -11 -10 -10 -10 -9 ------- Run | Scr Mat Min Exi Min Combat Hostiles Destroyed 4 | . 2 1 . 1 Guns 4 | . 2 1 . 1 Classes Destroyed 3 | . 1 1 . 1 Builder 1 | . . 1 . . Swarmer 3 | . 2 1 . . Assembled 1 | . . . . 1 Best Kill Streak 2 | . 2 2 . 1 Combat Bots Only 2 | . 2 1 . 1 Max Kills in Single Turn 1 | . 1 1 . 1 Gunslinging . | . . . . . Exploded . | . . . . . Melee . | . . . . . Uniques/NPCs Destroyed . | . . . . . Combat | -11 -10 -10 -10 -9 -------- Run | Scr Mat Min Exi Min Damage Taken 831 | . 58 46 . 727 Core 253 | . 18 19 . 216 Absorbed by Shields . | . . . . . Core Remaining (%) 100 | 100 . . . . Volleys Fired 14 | . 5 6 . 3 Largest 2 | . 2 2 . 2 Hottest 90 | . 90 46 . 46 Shots Fired 28 | . 10 12 . 6 Gun 28 | . 10 12 . 6 Cannon . | . . . . . Launcher . | . . . . . Special . | . . . . . Kinetic 18 | . . 12 . 6 Thermal . | . . . . . Explosive . | . . . . . Electromagnetic 10 | . 10 . . . Robot Hit Streak 4 | . 4 4 . 4 Robot Miss Streak 3 | . 3 1 . 2 Penetration Max . | . . . . . Secondary Targets 1 | . . . . 1 Max Gunslinging Chain 1 | . . . . 1 Shots Hit Robots 20 | . 8 8 . 4 Core Hits 10 | . 4 3 . 3 Critical Kills . | . . . . . Critical Parts Destroyed . | . . . . . Critical Strikes . | . . . . . Melee Attacks . | . . . . . Impact . | . . . . . Slashing . | . . . . . Piercing . | . . . . . Sneak Attacks . | . . . . . Combat Hostiles . | . . . . . Follow-up Attacks . | . . . . . Damage Inflicted 307 | . 98 136 . 73 Guns 307 | . 98 136 . 73 Cannons . | . . . . . Explosions . | . . . . . Melee . | . . . . . Ramming . | . . . . . Kinetic 209 | . . 136 . 73 Thermal . | . . . . . Explosive . | . . . . . Electromagnetic 98 | . 98 . . . Impact . | . . . . . Slashing . | . . . . . Piercing . | . . . . . Highest Corruption . | . . . . . Average Corruption . | . . . . . Corruption Purged . | . . . . . Corruption Blocked . | . . . . . Overload Shots . | . . . . . Overflow Damage . | . . . . . Projectiles . | . . . . . Explosions . | . . . . . Melee . | . . . . . Knockbacks . | . . . . . Impact . | . . . . . Kinetic . | . . . . . Secondary . | . . . . . Self-Inflicted Damage . | . . . . . Shots . | . . . . . Rammed . | . . . . . Targets Rammed . | . . . . . Kicked . | . . . . . Crushed . | . . . . . Highest Temperature 90 | . 90 . . . Average Temperature 35 | . 35 . . . Received Heat Transfer 6 | . 6 . . . Siege Activations . | . . . . . Robots Corrupted . | . . . . . Combat Hostiles . | . . . . . Parts Fried . | . . . . . Impact Corruptions . | . . . . . Robots Melted . | . . . . . Combat Hostiles . | . . . . . Parts Melted . | . . . . . Heat Transferred . | . . . . . Parts Sabotaged . | . . . . . Parts Stolen . | . . . . . Parts Stripped . | . . . . . Power Chain Reactions . | . . . . . Missiles Intercepted . | . . . . . Alert | -11 -10 -10 -10 -9 ------- Run | Scr Mat Min Exi Min Peak Influence 61 | . 55 61 . 15 Initial 21 | . . 21 . . Average 29 | . 21 40 . 1 Maximum Alert Level . | . . . . . Low Security (%) 100 | 100 100 100 . 100 Level 1 . | . . . . . Level 2 . | . . . . . Level 3 . | . . . . . Level 4 . | . . . . . Level 5 . | . . . . . High Security . | . . . . . Max Security . | . . . . . Squads Dispatched 2 | . 2 . . . Investigation 1 | . 1 . . . Extermination . | . . . . . Reinforcement 1 | . 1 . . . Assault . | . . . . . Garrison . | . . . . . Intercept . | . . . . . Searches Triggered . | . . . . . Construction Impeded . | . . . . . Haulers Reinforced . | . . . . . Active Scanning Responses . | . . . . . Cargo Convoy Interrupts . | . . . . . Stealth | -11 -10 -10 -10 -9 --------- Run | Scr Mat Min Exi Min Distress Signals 3 | . 2 1 . . Communications Jammed . | . . . . . Distress Signals . | . . . . . Times Spotted 23 | . 8 9 . 6 Peak Tracking Total 6 | . 6 3 . 3 Tactical Retreats 1 | . . 1 . . Traps | -11 -10 -10 -10 -9 ------- Run | Scr Mat Min Exi Min Traps Triggered . | . . . . . Indirectly . | . . . . . Trap Hack Attempts . | . . . . . Triggered . | . . . . . Disarmed . | . . . . . Reprogrammed . | . . . . . Reused . | . . . . . Traps Extracted . | . . . . . Installed . | . . . . . Triggered . | . . . . . Machines | -11 -10 -10 -10 -9 ---------- Run | Scr Mat Min Exi Min Machines Disabled . | . . . . . Max in Single Turn . | . . . . . Machines Sabotaged . | . . . . . Garrisons Compromised . | . . . . . Overloaded Fab Kills . | . . . . . Hacking | -11 -10 -10 -10 -9 --------- Run | Scr Mat Min Exi Min Machines Accessed 3 | . . 1 2 . Terminals . | . . . . . Fabricators . | . . . . . Repair Stations . | . . . . . Recycling Units . | . . . . . Scanalyzers . | . . . . . Garrison Access . | . . . . . Total Hacks 6 | . . 1 5 . Successful 6 | . . 1 5 . Failed . | . . . . . Catastrophic . | . . . . . Database Lockouts . | . . . . . Manual 1 | . . . 1 . Terminals . | . . . . . Fabricators . | . . . . . Repair Stations . | . . . . . Recycling Units . | . . . . . Scanalyzers . | . . . . . Garrison Access . | . . . . . Terminal Hacks 6 | . . 1 5 . Record 4 | . . . 4 . Open Door 1 | . . 1 . . EX-Prototype ID Bank 1 | . . . 1 . Fabricator Hacks . | . . . . . Repair Station Hacks . | . . . . . Recycling Unit Hacks . | . . . . . Scanalyzer . | . . . . . Garrison Access Hacks . | . . . . . Unauthorized Hacks . | . . . . . Terminals . | . . . . . Fabricators . | . . . . . Repair Stations . | . . . . . Recycling Units . | . . . . . Scanalyzers . | . . . . . Garrison Access . | . . . . . Data Cores Recovered . | . . . . . Used . | . . . . . Hacking Detections . | . . . . . Full Trace Events . | . . . . . Feedback Events . | . . . . . Feedback Blocked . | . . . . . Robot Schematics Acquired . | . . . . . Robots Built . | . . . . . Authchips . | . . . . . Time . | . . . . . Total Robot Build Rating . | . . . . . Part Schematics Acquired . | . . . . . Parts Built . | . . . . . Authchips . | . . . . . Time . | . . . . . Total Part Build Rating . | . . . . . Parts Repaired . | . . . . . Time . | . . . . . Parts Recycled . | . . . . . Recycled Matter . | . . . . . Retrieved Matter . | . . . . . Retrieved Components . | . . . . . Parts Scanalyzed . | . . . . . Part Schematics Acquired . | . . . . . Parts Damaged . | . . . . . Bothacking | -11 -10 -10 -10 -9 ------------ Run | Scr Mat Min Exi Min Used RIF Installer . | . . . . . Robots Hacked . | . . . . . Non-combat . | . . . . . Combat . | . . . . . Robot Hacks Applied . | . . . . . Relay Couplers Released . | . . . . . Fabnet Peak Effective % . | . . . . . Robots Rewired . | . . . . . Allies Hacked . | . . . . . Hacks Repelled . | . . . . . Allies | -11 -10 -10 -10 -9 -------- Run | Scr Mat Min Exi Min Total Allies . | . . . . . Largest Group . | . . . . . Highest-Rated Group . | . . . . . Highest-Rated Ally . | . . . . . Total Orders . | . . . . . Ally Attacks . | . . . . . Total Damage . | . . . . . Kills . | . . . . . Allies Corrupted . | . . . . . Allies Melted . | . . . . . Intel | -11 -10 -10 -10 -9 ------- Run | Scr Mat Min Exi Min Robot Analysis Total . | . . . . . Derelict Logs Recovered 1 | . . 1 . . Drone Launches . | . . . . . Drone Recoveries . | . . . . . Exploration | -11 -10 -10 -10 -9 ------------- Run | Scr Mat Min Exi Min Turns Passed 965 | 37 133 396 319 80 Spaces Moved 863 | 36 116 363 289 59 Core 14 | 14 . . . . Treads . | . . . . . Legs . | . . . . . Wheels 849 | 22 116 363 289 59 Hover . | . . . . . Flight . | . . . . . Fastest Speed 50 | 50 80 80 110 110 Average Speed 95 | 73 80 89 110 114 Slowest Speed 155 | 100 80 110 110 155 Overloaded Moves . | . . . . . Propulsion Burnouts . | . . . . . Robots Hopped . | . . . . . Cave-ins Triggered . | . . . . . Exploration Rate (%) 36 | 2 38 62 60 18 Regions Visited 4 Branch Regions 3 Pre-discovered Areas 3 | . . 2 1 . Known Exits Taken . | . . . . . Unknown Exits Taken 4 | 1 1 1 1 . Scrap Searched 1 | . . 1 . . Spaces Dug . | . . . . . Terrain Destroyed . | . . . . . Melee . | . . . . . Projectile . | . . . . . AOE . | . . . . . Terrain Rammed . | . . . . . Walls Destroyed . | . . . . . Machines Disabled . | . . . . . Actions | -11 -10 -10 -10 -9 --------- Run | Scr Mat Min Exi Min Total 971 | 44 148 423 290 66 Wait 49 | . . 49 . . Move 859 | 35 115 362 288 59 Hop . | . . . . . Pick Up 24 | 3 14 4 2 1 Fast Attach 6 | 4 1 1 . . Attach 8 | 2 3 . . 3 Detach . | . . . . . Swap 2 | . 2 . . . Drop 9 | . 8 1 . . Fire 14 | . 5 6 . 3 Melee . | . . . . . Ram . | . . . . . Kick . | . . . . . Crush . | . . . . . Escape Stasis . | . . . . . Rewire . | . . . . . Trap . | . . . . . Miscellaneous . | . . . . . Route ------- -11/Scrapyard -10/Materials (discovered 2 exits: [*Mat] / *Min) -10/Mines -10/Exiles -9/Mines History --------- Turn | Location | Event 17 | -11/Scrapyard | Discovered new exit (range 15) 38 | -11/Scrapyard | Entered Materials 105 | -10/Materials | Met 8R-AWN 109 | -10/Materials | Discovered new exit (range 16) 135 | -10/Materials | Discovered new exit (range 12) 171 | -10/Materials | Entered Mines 172 | -10/Mines | Learned location of Storage (-9) 172 | -10/Mines | Followed 8R-AWN into the Mines 247 | -10/Mines | Found the Drone Emporium 317 | -10/Mines | Build established: Mutant 370 | -10/Mines | Discovered new exit (range 5) 487 | -10/Mines | Found Prototype Device 567 | -10/Mines | Entered Exiles 594 | -10/Exiles | Welcomed by 8R-AWN 614 | -10/Exiles | Met EX-HEX 646 | -10/Exiles | Met EX-BIN 661 | -10/Exiles | Aligned with FarCom system 662 | -10/Exiles | Given EX-Vault access code 687 | -10/Exiles | Opened EX-Vault 695 | -10/Exiles | Found Modified TNC 721 | -10/Exiles | Warned to stay clear of 0b10 Research branches 754 | -10/Exiles | Met EX-DEC 787 | -10/Exiles | Learned location of Zion (-6) 819 | -10/Exiles | Discovered new exit (range 10) 886 | -10/Exiles | Left Exiles lab with Modified TNC 886 | -10/Exiles | Entered Mines 887 | -9/Mines | Assembled infested the area 892 | -9/Mines | Assisted by a Guerilla fighting off Assembled 908 | -9/Mines | A weapon hastily lodged in a ceiling crevice suddenly fell to the ground 950 | -9/Mines | Core integrity fell below 50% 965 | -9/Mines | Core integrity fell below 20% 966 | -9/Mines | Destroyed by D-53 Grenadier with Mini Grenade Launcher Last Messages --------------- note attached: "Who needs nails when you have Unaware?" 00911_ Acquired Mak. Hammer. 00940_ as-10000 destroyed. 00940_ Switching to secondary target: as-98836. 00941_ Wheel destroyed. 00943_ Acquired 13 matter. 00943_ C-30 ARC bursts open, deploying its payload. 00943_ D-53 Grenadier unfolds itself. 00943_ as-98836 destroyed. 00946_ Wheel destroyed. 00947_ Ion Engine destroyed. 00951_ as-10521 destroyed. 00951_ as-57645 destroyed. 00952_ The unstable cave ceiling collapses. 00955_ Imp. Assault Rifle destroyed. 00957_ The unstable cave ceiling collapses. 00957_ Wheel destroyed. 00963_ Imp. Assault Rifle destroyed. 00964_ Wheel destroyed. 00966_ The unstable cave ceiling collapses. Map ----- +----------------------------------------------------+ | ?????????????????????????????????????????????? | | ?????????????????????????????????????????????? | | ?????????????????????????????????????????????? | | ?????????????????????????????????????????????? | | ?????????????????????????????????????????????? | | ?????????????????????????????????????????????? | | ?????????????????????????????????????????????? | | ?????????????????????????????????????????????? | | ?????????????????????????????????????????????? | | ?????????????????????????????????????????????? | | ?????????????????????????# ??????????????????? | | ????????????????????????? ??????????????????? | | ????????????????????????# ??????????????????? | | ??????????????????????## ?????????Y????????? | | ??????????????????????# ??????????????????? | | ??????????????????????# ??????????????????? | | ??????????????????????# ??????????????????? | | ?????????????????????## ??????????????????? | | ?????????????????????# #??????????????????? | | ?????????????????????# #??????????????????? | | ?????????????????????# # #????????????????? | | ????????????????????## #????????????????? | | ????????????????????# ##???????????????? | | ???????????####????## < #???????????????? | | ??????????? #????# ####????????????? | | ???????????# #?????# @ ##???????????? | | ???????????# #?????# ##??????????? | | ???????????# ###???# # ##?????????? | | ???????????# ##??# ##????????? | | ???????????# #??# dd #????????? | | ?????????### #??## # #????????? | | ?????????# ##?######## ##????????? | | ????????# ## #??# ### #?????????? | | ????????# ### #### # #????????? | | ????????# ##??# "%" ] ##????????? | | ????????##????###### # # #?????????? | | ???????????????????# #?????????? | | ???????????????????# #?????????? | | ???????????????????## = #??????? | | ????????????????????# # ####??????? | | ????????????????????# #????????? | | ???????????????????## ## # # #????????? | | ???????????????????# ######## ##????????? | | ???????????????????# #??????# #?????????? | | ???????????????????## #??????## ##?????????? | | ????????????????????####????????###??????????? | | ?????????????????????????????????????????????? | | ?????????????????????????????????????????????? | | | | | +----------------------------------------------------+ Best States ------------- Heat Dissipation 25 Energy Generation 10 Energy Capacity 250 Matter Stores 300 Matter Capacity 300 Sight Range 16 Terrain Scan Density 10 Evasion (%) 50 Item Schematics ----------------- None Robot Schematics ------------------ None Fabricated ------------ Nothing Alien Tech Used ----------------- None Achievements -------------- None Challenges ------------ None Game ------ Seed DirtyResetImmobilizer Manual? 0 Play Time 00:10:55 Cumulative 911.5 hours Start 2022.08.22 @ 21:51:48 End 2022.08.22 @ 22:02:28 Sessions 1 Manual Loads 0 Difficulty Rogue Special Mode None Game No. 470 Rogue 470 Adventurer 0 Explorer 0 Win Type - Total 68 Types 38/5/14/6/1/1/3/0/0 Lore% 88 Gallery% 89 Achievement% 76 Wizard Run 0 Options --------- ASCII 0 Keyboard 0 Movement Mouse Keybinds 0 Fullscreen 1 Font 28/SmallcapsLarge Map View 72x54 Tactical HUD 1 Map Filters NONE Filters NONE Steam 0 RUN: adcc3321-3598-4bf3-a0f4-192c16ce0856